[Event "Titled Tuesday Blitz March 08 Early 2022"]
[White "Kostiukov, Alexandr"]
[Black "Bashirli, Saadat"]
[WhiteFideId "14108100"]
[BlackFideId "13429990"]
[WhiteElo "2202"]
[BlackElo "1173"]
[Result "1/2-1/2"]
[Round "05"]
[TimeControl "180+1"]
[Date "2022.03.09"]
[WhiteClock "0:00:04"]
[BlackClock "0:00:09"]

1. g3 {[%clk 0:02:59]}  d5 {[%clk 0:02:58]} 2. Bg2 {[%clk 0:02:59]}  Bg4 {[%clk 0:02:56]} 3. h3 {[%clk 0:02:58]}  Bf5 {[%clk 0:02:55]} 4. d3 {[%clk 0:02:58]}  Nc6 {[%clk 0:02:54]} 5. e4 {[%clk 0:02:58]}  dxe4 {[%clk 0:02:53]} 6. dxe4 {[%clk 0:02:59]}  Qxd1+ {[%clk 0:02:52]} 7. Kxd1 {[%clk 0:03:00]}  O-O-O+ {[%clk 0:02:52]} 8. Nd2 {[%clk 0:02:59]}  Bg6 {[%clk 0:02:51]} 9. f4 {[%clk 0:02:58]}  f6 {[%clk 0:02:49]} 10. c3 {[%clk 0:02:57]}  e5 {[%clk 0:02:46]} 11. Kc2 {[%clk 0:02:47]}  Bc5 {[%clk 0:02:41]} 12. a4 {[%clk 0:02:25]}  Nge7 {[%clk 0:02:30]} 13. Nc4 {[%clk 0:02:05]}  Rhe8 {[%clk 0:02:09]} 14. fxe5 {[%clk 0:01:56]}  fxe5 {[%clk 0:02:07]} 15. Be3 {[%clk 0:01:53]}  Bxe3 {[%clk 0:02:05]} 16. Nxe3 {[%clk 0:01:54]}  Ng8 {[%clk 0:01:59]} 17. Nf5 {[%clk 0:01:46]}  Bxf5 {[%clk 0:01:57]} 18. exf5 {[%clk 0:01:46]}  Nge7 {[%clk 0:01:55]} 19. Be4 {[%clk 0:01:41]}  Rf8 {[%clk 0:01:51]} 20. Rf1 {[%clk 0:01:32]}  Nd5 {[%clk 0:01:49]} 21. Bxd5 {[%clk 0:01:27]}  Rxd5 {[%clk 0:01:50]} 22. Ne2 {[%clk 0:01:22]}  Rfd8 {[%clk 0:01:49]} 23. Rd1 {[%clk 0:01:22]}  Ne7 {[%clk 0:01:44]} 24. g4 {[%clk 0:01:16]}  R5d6 {[%clk 0:01:37]} 25. Rhe1 {[%clk 0:01:10]}  Nd5 {[%clk 0:01:26]} 26. Kb3 {[%clk 0:00:56]}  Nf6 {[%clk 0:01:16]} 27. Rxd6 {[%clk 0:00:53]}  Rxd6 {[%clk 0:01:17]} 28. Kc2 {[%clk 0:00:44]}  Nd5 {[%clk 0:01:16]} 29. Ng3 {[%clk 0:00:42]}  Nf4 {[%clk 0:01:03]} 30. h4 {[%clk 0:00:20]}  Rd5 {[%clk 0:00:49]} 31. g5 {[%clk 0:00:11]}  Ng2 {[%clk 0:00:44]} 32. Re4 {[%clk 0:00:11]}  Nf4 {[%clk 0:00:37]} 33. f6 {[%clk 0:00:09]}  gxf6 {[%clk 0:00:37]} 34. gxf6 {[%clk 0:00:10]}  Ng6 {[%clk 0:00:37]} 35. h5 {[%clk 0:00:05]}  Nf8 {[%clk 0:00:35]} 36. Nf5 {[%clk 0:00:05]}  Kd7 {[%clk 0:00:32]} 37. Ne7 {[%clk 0:00:05]}  Rd6 {[%clk 0:00:30]} 38. Ng8 {[%clk 0:00:03]}  Re6 {[%clk 0:00:25]} 39. b4 {[%clk 0:00:04]}  Ke8 {[%clk 0:00:23]} 40. Kd3 {[%clk 0:00:04]}  Kf7 {[%clk 0:00:22]} 41. Nh6+ {[%clk 0:00:05]}  Kxf6 {[%clk 0:00:21]} 42. Ng4+ {[%clk 0:00:05]}  Kf5 {[%clk 0:00:20]} 43. Ne3+ {[%clk 0:00:06]}  Kg5 {[%clk 0:00:20]} 44. Nd5 {[%clk 0:00:04]}  c6 {[%clk 0:00:19]} 45. Nc7 {[%clk 0:00:04]}  Re7 {[%clk 0:00:19]} 46. Na8 {[%clk 0:00:04]}  Kxh5 {[%clk 0:00:18]} 47. b5 {[%clk 0:00:05]}  cxb5 {[%clk 0:00:17]} 48. axb5 {[%clk 0:00:06]}  Kg5 {[%clk 0:00:13]} 49. b6 {[%clk 0:00:04]}  axb6 {[%clk 0:00:13]} 50. Nxb6 {[%clk 0:00:05]}  h5 {[%clk 0:00:13]} 51. Nd5 {[%clk 0:00:06]}  Re6 {[%clk 0:00:10]} 52. c4 {[%clk 0:00:07]}  h4 {[%clk 0:00:09]} 53. Ke3 {[%clk 0:00:07]}  Ng6 {[%clk 0:00:09]} 54. Kf3 {[%clk 0:00:08]}  Re8 {[%clk 0:00:08]} 55. Rg4+ {[%clk 0:00:08]}  Kh5 {[%clk 0:00:07]} 56. Nf6+ {[%clk 0:00:08]}  Kh6 {[%clk 0:00:08]} 57. Nxe8 {[%clk 0:00:09]}  h3 {[%clk 0:00:08]} 58. Kg3 {[%clk 0:00:09]}  Nf4 {[%clk 0:00:07]} 59. Rxf4 {[%clk 0:00:08]}  exf4+ {[%clk 0:00:08]} 60. Kxh3 {[%clk 0:00:09]}  Kg5 {[%clk 0:00:08]} 61. Kg2 {[%clk 0:00:09]}  Kf5 {[%clk 0:00:08]} 62. Kf3 {[%clk 0:00:10]}  Ke5 {[%clk 0:00:08]} 63. Ke2 {[%clk 0:00:09]}  Kd4 {[%clk 0:00:08]} 64. Nd6 {[%clk 0:00:09]}  Kc5 {[%clk 0:00:09]} 65. Nxb7+ {[%clk 0:00:08]}  Kxc4 {[%clk 0:00:09]} 66. Kf3 {[%clk 0:00:09]}  Kd4 {[%clk 0:00:09]} 67. Kxf4 {[%clk 0:00:04]} 1/2-1/2


[Site "https://www.chess.com"]

[Event "Titled Tuesday Blitz March 08 Early 2022"]
[White "Kovanova, Baira"]
[Black "Murzin, Volodar"]
[WhiteFideId "4164083"]
[BlackFideId "44155573"]
[WhiteElo "2190"]
[BlackElo "2585"]
[Result "0-1"]
[Round "05"]
[TimeControl "180+1"]
[Date "2022.03.09"]
[WhiteClock "0:00:02"]
[BlackClock "0:00:22"]

1. e4 {[%clk 0:03:00]}  c6 {[%clk 0:02:48]} 2. Nf3 {[%clk 0:02:57]}  d5 {[%clk 0:02:47]} 3. d3 {[%clk 0:02:54]}  Qc7 {[%clk 0:02:46]} 4. Nc3 {[%clk 0:02:41]}  dxe4 {[%clk 0:02:42]} 5. dxe4 {[%clk 0:02:41]}  e5 {[%clk 0:02:41]} 6. Bc4 {[%clk 0:02:36]}  h6 {[%clk 0:02:39]} 7. a4 {[%clk 0:02:32]}  Nf6 {[%clk 0:02:38]} 8. h3 {[%clk 0:02:31]}  a5 {[%clk 0:02:32]} 9. Be3 {[%clk 0:02:29]}  Nbd7 {[%clk 0:02:30]} 10. O-O {[%clk 0:02:27]}  Bc5 {[%clk 0:02:29]} 11. Qe2 {[%clk 0:02:21]}  O-O {[%clk 0:02:26]} 12. Nh4 {[%clk 0:02:19]}  Bxe3 {[%clk 0:02:23]} 13. Qxe3 {[%clk 0:02:14]}  Qb6 {[%clk 0:02:20]} 14. Qf3 {[%clk 0:01:51]}  Nc5 {[%clk 0:02:12]} 15. b3 {[%clk 0:01:46]}  Be6 {[%clk 0:02:06]} 16. Nf5 {[%clk 0:01:40]}  Kh7 {[%clk 0:01:42]} 17. Ne3 {[%clk 0:00:59]}  Rad8 {[%clk 0:01:28]} 18. Rad1 {[%clk 0:00:44]}  Rd4 {[%clk 0:01:21]} 19. Nf5 {[%clk 0:00:17]}  Rxd1 {[%clk 0:01:12]} 20. Rxd1 {[%clk 0:00:16]}  Rd8 {[%clk 0:01:12]} 21. Rxd8 {[%clk 0:00:15]}  Qxd8 {[%clk 0:01:09]} 22. Be2 {[%clk 0:00:08]}  Qd2 {[%clk 0:00:47]} 23. Bd1 {[%clk 0:00:07]}  Ncxe4 {[%clk 0:00:37]} 24. Nxe4 {[%clk 0:00:07]}  Qe1+ {[%clk 0:00:36]} 25. Kh2 {[%clk 0:00:06]}  Nxe4 {[%clk 0:00:37]} 26. Be2 {[%clk 0:00:05]}  Nxf2 {[%clk 0:00:26]} 27. Ne3 {[%clk 0:00:02]}  e4 {[%clk 0:00:21]} 28. Qf4 {[%clk 0:00:02]}  Qxe2 {[%clk 0:00:22]} 0-1


[Site "https://www.chess.com"]

[Event "Titled Tuesday Blitz March 08 Early 2022"]
[White "Kuderinov, Kirill"]
[Black "Petrovic, Aleksa"]
[WhiteFideId "13701568"]
[BlackFideId "967629"]
[WhiteElo "2432"]
[BlackElo "2245"]
[Result "0-1"]
[Round "05"]
[TimeControl "180+1"]
[Date "2022.03.09"]
[WhiteClock "0:00:04"]
[BlackClock "0:00:04"]

1. e4 {[%clk 0:02:43]}  c6 {[%clk 0:02:58]} 2. d4 {[%clk 0:02:43]}  d5 {[%clk 0:02:58]} 3. e5 {[%clk 0:02:43]}  c5 {[%clk 0:02:58]} 4. dxc5 {[%clk 0:02:42]}  e6 {[%clk 0:02:58]} 5. Be3 {[%clk 0:02:32]}  Nd7 {[%clk 0:02:56]} 6. Nf3 {[%clk 0:02:31]}  Qc7 {[%clk 0:02:53]} 7. Nc3 {[%clk 0:02:27]}  a6 {[%clk 0:02:49]} 8. Bd3 {[%clk 0:02:18]}  Bxc5 {[%clk 0:02:37]} 9. Bxc5 {[%clk 0:02:15]}  Nxc5 {[%clk 0:02:36]} 10. O-O {[%clk 0:02:14]}  Ne7 {[%clk 0:02:35]} 11. Re1 {[%clk 0:02:12]}  Ng6 {[%clk 0:02:33]} 12. Bxg6 {[%clk 0:02:08]}  fxg6 {[%clk 0:02:33]} 13. Nd4 {[%clk 0:01:57]}  O-O {[%clk 0:02:20]} 14. a4 {[%clk 0:01:56]}  b6 {[%clk 0:02:01]} 15. Qd2 {[%clk 0:01:49]}  Bd7 {[%clk 0:01:26]} 16. b4 {[%clk 0:01:42]}  Nb7 {[%clk 0:01:21]} 17. Re3 {[%clk 0:01:30]}  Rac8 {[%clk 0:01:16]} 18. Nd1 {[%clk 0:01:14]}  a5 {[%clk 0:01:09]} 19. c3 {[%clk 0:01:12]}  Ra8 {[%clk 0:00:52]} 20. Nb2 {[%clk 0:01:10]}  Ra7 {[%clk 0:00:41]} 21. h4 {[%clk 0:01:06]}  Rfa8 {[%clk 0:00:40]} 22. f4 {[%clk 0:00:46]}  axb4 {[%clk 0:00:34]} 23. cxb4 {[%clk 0:00:47]}  Qd8 {[%clk 0:00:31]} 24. h5 {[%clk 0:00:36]}  Qe8 {[%clk 0:00:25]} 25. hxg6 {[%clk 0:00:32]}  hxg6 {[%clk 0:00:26]} 26. Rea3 {[%clk 0:00:17]}  Nd8 {[%clk 0:00:21]} 27. Kh2 {[%clk 0:00:17]}  Bxa4 {[%clk 0:00:21]} 28. Rg3 {[%clk 0:00:17]}  Bd7 {[%clk 0:00:18]} 29. Rxa7 {[%clk 0:00:16]}  Rxa7 {[%clk 0:00:19]} 30. Qd3 {[%clk 0:00:16]}  Ra2 {[%clk 0:00:16]} 31. Nd1 {[%clk 0:00:15]}  Qf7 {[%clk 0:00:16]} 32. Qf3 {[%clk 0:00:12]}  Nc6 {[%clk 0:00:14]} 33. Nxc6 {[%clk 0:00:11]}  Bxc6 {[%clk 0:00:15]} 34. Ne3 {[%clk 0:00:11]}  Bb7 {[%clk 0:00:14]} 35. Qg4 {[%clk 0:00:08]}  d4 {[%clk 0:00:14]} 36. Nc4 {[%clk 0:00:08]}  d3 {[%clk 0:00:11]} 37. Nd6 {[%clk 0:00:08]}  Qd7 {[%clk 0:00:08]} 38. Qxg6 {[%clk 0:00:06]}  d2 {[%clk 0:00:05]} 39. Rh3 {[%clk 0:00:03]}  Qxd6 {[%clk 0:00:02]} 40. Qe8+ {[%clk 0:00:01]}  Qf8 {[%clk 0:00:01]} 41. Rh8+ {[%clk 0:00:01]}  Kxh8 {[%clk 0:00:02]} 42. Qxf8+ {[%clk 0:00:02]}  Kh7 {[%clk 0:00:03]} 43. Qd8 {[%clk 0:00:02]}  d1=Q {[%clk 0:00:02]} 44. Qxd1 {[%clk 0:00:02]}  Rxg2+ {[%clk 0:00:03]} 45. Kh3 {[%clk 0:00:03]}  Rg6 {[%clk 0:00:04]} 46. Qd7 {[%clk 0:00:02]}  Bg2+ {[%clk 0:00:03]} 47. Kh2 {[%clk 0:00:02]}  Be4 {[%clk 0:00:04]} 48. Qf7 {[%clk 0:00:02]}  Bf5 {[%clk 0:00:04]} 49. Qd7 {[%clk 0:00:03]}  Rg4 {[%clk 0:00:04]} 50. Qd4 {[%clk 0:00:02]}  g5 {[%clk 0:00:03]} 51. Qxb6 {[%clk 0:00:02]}  gxf4 {[%clk 0:00:03]} 52. Qc7+ {[%clk 0:00:03]}  Kg6 {[%clk 0:00:03]} 53. b5 {[%clk 0:00:04]}  f3 {[%clk 0:00:03]} 54. Qc8 {[%clk 0:00:03]}  f2 {[%clk 0:00:03]} 55. Qg8+ {[%clk 0:00:02]}  Kh5 {[%clk 0:00:03]} 56. Qh8+ {[%clk 0:00:03]}  Kg5 {[%clk 0:00:04]} 57. Qg7+ {[%clk 0:00:01]}  Kf4 {[%clk 0:00:04]} 58. Qh6+ {[%clk 0:00:02]}  Kf3 {[%clk 0:00:04]} 59. Qc1 {[%clk 0:00:02]}  Rg2+ {[%clk 0:00:02]} 60. Kh1 {[%clk 0:00:02]}  Rg1+ {[%clk 0:00:03]} 61. Qxg1 {[%clk 0:00:02]}  fxg1=Q+ {[%clk 0:00:04]} 62. Kxg1 {[%clk 0:00:03]}  Be4 {[%clk 0:00:04]} 63. b6 {[%clk 0:00:04]}  Bb7 {[%clk 0:00:04]} 0-1


[Site "https://www.chess.com"]

[Event "Titled Tuesday Blitz March 08 Early 2022"]
[White "Kuzmin, Roman"]
[Black "Mirzanurov, Bulat"]
[WhiteFideId "44134932"]
[BlackFideId "4184521"]
[WhiteElo "1978"]
[BlackElo "2116"]
[Result "1-0"]
[Round "05"]
[TimeControl "180+1"]
[Date "2022.03.09"]
[WhiteClock "0:00:16"]
[BlackClock "0:00:09"]

1. e4 {[%clk 0:03:00]}  c5 {[%clk 0:02:57]} 2. Nf3 {[%clk 0:03:01]}  d6 {[%clk 0:02:56]} 3. d4 {[%clk 0:03:01]}  cxd4 {[%clk 0:02:56]} 4. Nxd4 {[%clk 0:03:02]}  Nf6 {[%clk 0:02:55]} 5. Nc3 {[%clk 0:03:03]}  a6 {[%clk 0:02:54]} 6. Be2 {[%clk 0:03:01]}  e5 {[%clk 0:02:53]} 7. Nb3 {[%clk 0:03:00]}  Be7 {[%clk 0:02:52]} 8. Be3 {[%clk 0:03:01]}  Nbd7 {[%clk 0:02:44]} 9. g4 {[%clk 0:02:56]}  h6 {[%clk 0:02:34]} 10. a4 {[%clk 0:02:48]}  b6 {[%clk 0:02:19]} 11. Qd2 {[%clk 0:02:29]}  Bb7 {[%clk 0:02:10]} 12. f3 {[%clk 0:02:29]}  Qc7 {[%clk 0:02:00]} 13. h4 {[%clk 0:02:26]}  Nc5 {[%clk 0:01:47]} 14. Nxc5 {[%clk 0:02:11]}  bxc5 {[%clk 0:01:43]} 15. Bc4 {[%clk 0:02:02]}  Qb6 {[%clk 0:01:33]} 16. a5 {[%clk 0:01:57]}  Qc7 {[%clk 0:01:29]} 17. Kf2 {[%clk 0:01:46]}  Rd8 {[%clk 0:01:25]} 18. g5 {[%clk 0:01:36]}  Ng8 {[%clk 0:00:50]} 19. Nd5 {[%clk 0:01:28]}  Bxd5 {[%clk 0:00:47]} 20. Qxd5 {[%clk 0:01:28]}  Bf8 {[%clk 0:00:43]} 21. Bxa6 {[%clk 0:01:01]}  Ne7 {[%clk 0:00:35]} 22. Bb5+ {[%clk 0:00:53]}  Rd7 {[%clk 0:00:32]} 23. Qa8+ {[%clk 0:00:47]}  Qd8 {[%clk 0:00:29]} 24. Bxd7+ {[%clk 0:00:42]}  Kxd7 {[%clk 0:00:28]} 25. Qb7+ {[%clk 0:00:42]}  Qc7 {[%clk 0:00:22]} 26. Qb5+ {[%clk 0:00:32]}  Nc6 {[%clk 0:00:21]} 27. a6 {[%clk 0:00:32]}  Qa7 {[%clk 0:00:19]} 28. Rhd1 {[%clk 0:00:28]}  Kc7 {[%clk 0:00:17]} 29. b4 {[%clk 0:00:22]}  Be7 {[%clk 0:00:15]} 30. bxc5 {[%clk 0:00:20]}  dxc5 {[%clk 0:00:15]} 31. Rdb1 {[%clk 0:00:17]}  Rb8 {[%clk 0:00:14]} 32. Qc4 {[%clk 0:00:16]}  Rb4 {[%clk 0:00:10]} 33. Rxb4 {[%clk 0:00:16]}  Nxb4 {[%clk 0:00:09]} 34. Qxb4 {[%clk 0:00:16]} 1-0


[Site "https://www.chess.com"]

[Event "Titled Tuesday Blitz March 08 Early 2022"]
[White "Lima, Kleyton Alcantara"]
[Black "Rychagov, Andrey"]
[WhiteFideId "22718397"]
[BlackFideId "4119932"]
[WhiteElo "1951"]
[BlackElo "2500"]
[Result "0-1"]
[Round "05"]
[TimeControl "180+1"]
[Date "2022.03.09"]
[WhiteClock "0:00:03"]
[BlackClock "0:00:03"]

1. e4 {[%clk 0:03:00]}  c5 {[%clk 0:02:59]} 2. Nf3 {[%clk 0:02:59]}  e6 {[%clk 0:02:58]} 3. d4 {[%clk 0:03:00]}  cxd4 {[%clk 0:02:58]} 4. Nxd4 {[%clk 0:03:00]}  a6 {[%clk 0:02:59]} 5. Bd3 {[%clk 0:02:59]}  Bc5 {[%clk 0:02:58]} 6. Nb3 {[%clk 0:02:59]}  Be7 {[%clk 0:02:58]} 7. Qg4 {[%clk 0:02:57]}  g6 {[%clk 0:02:57]} 8. Qe2 {[%clk 0:02:56]}  d6 {[%clk 0:02:57]} 9. a4 {[%clk 0:02:51]}  Nc6 {[%clk 0:02:57]} 10. O-O {[%clk 0:02:49]}  Ne5 {[%clk 0:02:57]} 11. Be3 {[%clk 0:02:46]}  Nf6 {[%clk 0:02:56]} 12. a5 {[%clk 0:02:46]}  O-O {[%clk 0:02:55]} 13. N1d2 {[%clk 0:02:46]}  Bd7 {[%clk 0:02:50]} 14. f4 {[%clk 0:02:43]}  Nxd3 {[%clk 0:02:49]} 15. cxd3 {[%clk 0:02:44]}  Bb5 {[%clk 0:02:40]} 16. Nc4 {[%clk 0:02:43]}  d5 {[%clk 0:02:27]} 17. exd5 {[%clk 0:02:27]}  Qxd5 {[%clk 0:02:11]} 18. Rad1 {[%clk 0:02:25]}  Rac8 {[%clk 0:02:03]} 19. Nbd2 {[%clk 0:02:05]}  Rc6 {[%clk 0:01:31]} 20. Ne5 {[%clk 0:02:03]}  Rc2 {[%clk 0:01:29]} 21. b3 {[%clk 0:01:48]}  Rd8 {[%clk 0:01:27]} 22. Qe1 {[%clk 0:01:15]}  Bb4 {[%clk 0:01:23]} 23. Qh4 {[%clk 0:01:12]}  Be7 {[%clk 0:01:09]} 24. Ndf3 {[%clk 0:01:09]}  Qxb3 {[%clk 0:00:38]} 25. Nd4 {[%clk 0:00:47]}  Rxd4 {[%clk 0:00:37]} 26. Bxd4 {[%clk 0:00:48]}  Nd5 {[%clk 0:00:33]} 27. Qh6 {[%clk 0:00:34]}  Bf8 {[%clk 0:00:31]} 28. Qh3 {[%clk 0:00:29]}  Qb4 {[%clk 0:00:31]} 29. Ba1 {[%clk 0:00:22]}  Nxf4 {[%clk 0:00:30]} 30. Qf3 {[%clk 0:00:12]}  Rxg2+ {[%clk 0:00:22]} 31. Kh1 {[%clk 0:00:12]}  g5 {[%clk 0:00:22]} 32. Rg1 {[%clk 0:00:06]}  Rxg1+ {[%clk 0:00:17]} 33. Rxg1 {[%clk 0:00:07]}  h6 {[%clk 0:00:18]} 34. d4 {[%clk 0:00:05]}  Bg7 {[%clk 0:00:16]} 35. d5 {[%clk 0:00:02]}  Bc4 {[%clk 0:00:10]} 36. Nxc4 {[%clk 0:00:02]}  Qxc4 {[%clk 0:00:10]} 37. Bxg7 {[%clk 0:00:03]}  Kxg7 {[%clk 0:00:10]} 38. dxe6 {[%clk 0:00:03]}  Nxe6 {[%clk 0:00:08]} 39. Rf1 {[%clk 0:00:03]}  Nf4 {[%clk 0:00:04]} 40. h4 {[%clk 0:00:02]}  Qe6 {[%clk 0:00:03]} 41. hxg5 {[%clk 0:00:03]}  hxg5 {[%clk 0:00:03]} 42. Rg1 {[%clk 0:00:03]}  Qh6+ {[%clk 0:00:03]} 0-1


[Site "https://www.chess.com"]

[Event "Titled Tuesday Blitz March 08 Early 2022"]
[White "Liyanage, Ranindu Dilshan"]
[Black "Kett, Tim"]
[WhiteFideId "9915834"]
[BlackFideId "1801210"]
[WhiteElo "1858"]
[BlackElo "2098"]
[Result "1-0"]
[Round "05"]
[TimeControl "180+1"]
[Date "2022.03.09"]
[WhiteClock "0:01:21"]
[BlackClock "0:00:32"]

1. e4 {[%clk 0:02:54]}  e5 {[%clk 0:02:59]} 2. Nf3 {[%clk 0:02:54]}  Nc6 {[%clk 0:03:00]} 3. Bc4 {[%clk 0:02:54]}  Nf6 {[%clk 0:02:59]} 4. d3 {[%clk 0:02:55]}  Bc5 {[%clk 0:02:56]} 5. c3 {[%clk 0:02:53]}  d6 {[%clk 0:02:56]} 6. O-O {[%clk 0:02:51]}  a6 {[%clk 0:02:56]} 7. a4 {[%clk 0:02:51]}  Ba7 {[%clk 0:02:56]} 8. Nbd2 {[%clk 0:02:41]}  O-O {[%clk 0:02:55]} 9. h3 {[%clk 0:02:37]}  d5 {[%clk 0:02:54]} 10. exd5 {[%clk 0:02:36]}  Nxd5 {[%clk 0:02:54]} 11. Re1 {[%clk 0:02:36]}  Re8 {[%clk 0:02:54]} 12. Ne4 {[%clk 0:02:35]}  f6 {[%clk 0:02:47]} 13. b4 {[%clk 0:02:29]}  Be6 {[%clk 0:02:45]} 14. Qb3 {[%clk 0:02:23]}  b5 {[%clk 0:02:18]} 15. axb5 {[%clk 0:02:22]}  axb5 {[%clk 0:02:18]} 16. Bxb5 {[%clk 0:02:23]}  Bxf2+ {[%clk 0:02:08]} 17. Nxf2 {[%clk 0:02:17]}  Rxa1 {[%clk 0:02:08]} 18. Bxc6 {[%clk 0:02:10]}  Nf4 {[%clk 0:02:02]} 19. Qb2 {[%clk 0:02:03]}  Ra2 {[%clk 0:02:01]} 20. Qb1 {[%clk 0:02:00]}  Rxf2 {[%clk 0:01:54]} 21. Bxf4 {[%clk 0:01:45]}  Rxf3 {[%clk 0:01:46]} 22. gxf3 {[%clk 0:01:40]}  exf4 {[%clk 0:01:40]} 23. Bxe8 {[%clk 0:01:39]}  Qxe8 {[%clk 0:01:40]} 24. d4 {[%clk 0:01:32]}  Qc6 {[%clk 0:01:18]} 25. Qe4 {[%clk 0:01:26]}  Bd5 {[%clk 0:00:53]} 26. Qe8+ {[%clk 0:01:20]}  Qxe8 {[%clk 0:00:53]} 27. Rxe8+ {[%clk 0:01:21]}  Kf7 {[%clk 0:00:53]} 28. Rc8 {[%clk 0:01:21]}  Bxf3 {[%clk 0:00:53]} 29. Rxc7+ {[%clk 0:01:21]}  Kg6 {[%clk 0:00:40]} 30. b5 {[%clk 0:01:20]}  f5 {[%clk 0:00:33]} 31. b6 {[%clk 0:01:21]}  Kf6 {[%clk 0:00:32]} 32. b7 {[%clk 0:01:21]} 1-0


[Site "https://www.chess.com"]

[Event "Titled Tuesday Blitz March 08 Early 2022"]
[White "Ljukin, Sergei"]
[Black "Abdyzhapar, Asylbek"]
[WhiteFideId "14102200"]
[BlackFideId "13800337"]
[WhiteElo "2312"]
[BlackElo "2331"]
[Result "1-0"]
[Round "05"]
[TimeControl "180+1"]
[Date "2022.03.09"]
[WhiteClock "0:00:05"]
[BlackClock "0:00:32"]

1. e4 {[%clk 0:02:46]}  d6 {[%clk 0:02:49]} 2. d4 {[%clk 0:02:46]}  Nf6 {[%clk 0:02:48]} 3. Nc3 {[%clk 0:02:45]}  g6 {[%clk 0:02:48]} 4. Bg5 {[%clk 0:02:45]}  Bg7 {[%clk 0:02:48]} 5. f4 {[%clk 0:02:45]}  h6 {[%clk 0:02:48]} 6. Bh4 {[%clk 0:02:44]}  Nbd7 {[%clk 0:02:48]} 7. e5 {[%clk 0:02:42]}  Nh7 {[%clk 0:02:47]} 8. e6 {[%clk 0:02:32]}  fxe6 {[%clk 0:02:46]} 9. Bd3 {[%clk 0:02:33]}  Ndf8 {[%clk 0:02:45]} 10. Nf3 {[%clk 0:02:32]}  Nf6 {[%clk 0:02:44]} 11. O-O {[%clk 0:02:28]}  c6 {[%clk 0:02:42]} 12. Ne4 {[%clk 0:02:24]}  Nxe4 {[%clk 0:02:39]} 13. Bxe4 {[%clk 0:02:24]}  Qb6 {[%clk 0:02:37]} 14. Rb1 {[%clk 0:02:12]}  c5 {[%clk 0:02:35]} 15. Bf2 {[%clk 0:02:07]}  c4 {[%clk 0:02:34]} 16. d5 {[%clk 0:01:54]}  Qa5 {[%clk 0:02:32]} 17. Bd4 {[%clk 0:01:53]}  Bxd4+ {[%clk 0:02:24]} 18. Qxd4 {[%clk 0:01:53]}  Rg8 {[%clk 0:02:24]} 19. Qxc4 {[%clk 0:01:47]}  Qb6+ {[%clk 0:02:24]} 20. Kh1 {[%clk 0:01:46]}  Bd7 {[%clk 0:02:22]} 21. Nd4 {[%clk 0:01:39]}  Rc8 {[%clk 0:02:19]} 22. Qd3 {[%clk 0:01:39]}  g5 {[%clk 0:02:12]} 23. dxe6 {[%clk 0:01:28]}  Nxe6 {[%clk 0:02:12]} 24. Nxe6 {[%clk 0:01:25]}  Bxe6 {[%clk 0:02:12]} 25. Bd5 {[%clk 0:01:11]}  Bxd5 {[%clk 0:02:10]} 26. Qxd5 {[%clk 0:01:11]}  Rg7 {[%clk 0:01:58]} 27. f5 {[%clk 0:00:49]}  Qc6 {[%clk 0:01:50]} 28. Qe6 {[%clk 0:00:47]}  Rf7 {[%clk 0:01:29]} 29. Qxh6 {[%clk 0:00:36]}  Rf6 {[%clk 0:01:29]} 30. Qxg5 {[%clk 0:00:34]}  Qxc2 {[%clk 0:01:26]} 31. Rbe1 {[%clk 0:00:33]}  Kd7 {[%clk 0:01:24]} 32. Rxe7+ {[%clk 0:00:29]}  Kxe7 {[%clk 0:01:23]} 33. Qg7+ {[%clk 0:00:29]}  Kd8 {[%clk 0:01:15]} 34. Qxf6+ {[%clk 0:00:29]}  Kc7 {[%clk 0:01:15]} 35. Qe7+ {[%clk 0:00:22]}  Kb8 {[%clk 0:01:14]} 36. Qxd6+ {[%clk 0:00:22]}  Ka8 {[%clk 0:01:15]} 37. Qe5 {[%clk 0:00:20]}  Qd3 {[%clk 0:01:11]} 38. Re1 {[%clk 0:00:19]}  a6 {[%clk 0:01:07]} 39. h3 {[%clk 0:00:18]}  Qc4 {[%clk 0:01:01]} 40. f6 {[%clk 0:00:16]}  Qxa2 {[%clk 0:01:01]} 41. Rf1 {[%clk 0:00:14]}  Qc4 {[%clk 0:00:57]} 42. Qf5 {[%clk 0:00:13]}  Rc5 {[%clk 0:00:55]} 43. Qf4 {[%clk 0:00:10]}  Qf7 {[%clk 0:00:54]} 44. Qe4 {[%clk 0:00:08]}  Rc7 {[%clk 0:00:51]} 45. Qe5 {[%clk 0:00:07]}  Rd7 {[%clk 0:00:50]} 46. Rc1 {[%clk 0:00:06]}  Qf8 {[%clk 0:00:48]} 47. Qe6 {[%clk 0:00:05]}  Qd8 {[%clk 0:00:48]} 48. f7 {[%clk 0:00:05]}  Rd1+ {[%clk 0:00:32]} 49. Rxd1 {[%clk 0:00:04]}  Qxd1+ {[%clk 0:00:33]} 50. Kh2 {[%clk 0:00:05]}  Qf1 {[%clk 0:00:32]} 51. Qe8+ {[%clk 0:00:04]}  Ka7 {[%clk 0:00:32]} 52. f8=Q {[%clk 0:00:05]} 1-0


[Site "https://www.chess.com"]

[Event "Titled Tuesday Blitz March 08 Early 2022"]
[White "Madaminov, Mukhiddin"]
[Black "Dolzhykova, Kateryna"]
[WhiteFideId "14210703"]
[BlackFideId "14113414"]
[WhiteElo "1916"]
[BlackElo "2184"]
[Result "1-0"]
[Round "05"]
[TimeControl "180+1"]
[Date "2022.03.09"]
[WhiteClock "0:01:54"]
[BlackClock "0:01:25"]

1. d4 {[%clk 0:03:00]}  Nf6 {[%clk 0:02:59]} 2. Nc3 {[%clk 0:03:00]}  d5 {[%clk 0:02:58]} 3. Bf4 {[%clk 0:03:00]}  g6 {[%clk 0:02:57]} 4. e3 {[%clk 0:02:56]}  Bg7 {[%clk 0:02:53]} 5. h4 {[%clk 0:02:56]}  h5 {[%clk 0:02:46]} 6. Nf3 {[%clk 0:02:55]}  O-O {[%clk 0:02:46]} 7. Be2 {[%clk 0:02:55]}  a6 {[%clk 0:02:43]} 8. Ne5 {[%clk 0:02:53]}  c5 {[%clk 0:02:43]} 9. dxc5 {[%clk 0:02:53]}  Nbd7 {[%clk 0:02:41]} 10. c6 {[%clk 0:02:35]}  Nxe5 {[%clk 0:02:31]} 11. cxb7 {[%clk 0:02:35]}  Bxb7 {[%clk 0:02:32]} 12. Bxe5 {[%clk 0:02:35]}  Qb6 {[%clk 0:02:21]} 13. Bd4 {[%clk 0:02:32]}  Qxb2 {[%clk 0:02:00]} 14. Rb1 {[%clk 0:02:24]}  Qa3 {[%clk 0:01:57]} 15. Rxb7 {[%clk 0:02:24]}  Rfc8 {[%clk 0:01:56]} 16. Rb3 {[%clk 0:02:23]}  Qa5 {[%clk 0:01:54]} 17. O-O {[%clk 0:02:23]}  e6 {[%clk 0:01:45]} 18. g3 {[%clk 0:02:12]}  Rab8 {[%clk 0:01:41]} 19. Qd3 {[%clk 0:02:06]}  Rxb3 {[%clk 0:01:40]} 20. axb3 {[%clk 0:02:05]}  Qc7 {[%clk 0:01:35]} 21. Qxa6 {[%clk 0:01:56]}  e5 {[%clk 0:01:34]} 22. Bxe5 {[%clk 0:01:56]}  Qd7 {[%clk 0:01:25]} 23. Bxf6 {[%clk 0:01:53]}  Bxf6 {[%clk 0:01:25]} 24. Qxf6 {[%clk 0:01:54]} 1-0


[Site "https://www.chess.com"]